fUST/lending_fUST_20250529
["ID","MTS","AMOUNT","RATE_DAILY","PERIOD"]
[362903966,1748518247445,-3070.42839563,0.00022,3]
[362903969,1748518247455,-650.39,0.00022,7]
[362903971,1748518247465,-38886.41,0.00022,7]
[362903972,1748518247474,-1242.72,0.00022,7]
[362903974,1748518247483,-3673.14,0.00022,2]
[362903976,1748518247494,-45620.12,0.00022,2]
[362903988,1748518247595,-747.17179153,0.00022003,6]
[362903990,1748518247605,-160.0,0.0002219,2]
[362903992,1748518247615,-430.0,0.00022191,2]
[362903994,1748518247624,-430.0,0.00022191,2]
[362903996,1748518247633,-430.0,0.00022191,2]
[362903998,1748518247642,-430.0,0.00022191,2]
[362904000,1748518247650,-430.0,0.00022191,2]
[362904002,1748518247660,-300.0,0.00022191,2]
[362904004,1748518247670,-821.8,0.00022191,2]
[362904006,1748518247680,-430.0,0.00022191,2]
[362904008,1748518247689,-430.0,0.00022191,2]
[362904010,1748518247699,-285.35,0.00022191,2]
[362904012,1748518247708,-1210.48,0.00022191,2]
[362904014,1748518247717,-457.55,0.00022191,2]
[362904016,1748518247727,-2174.08,0.00022191,2]
[362904018,1748518247736,-430.0,0.00022191,2]
[362904020,1748518247745,-430.0,0.00022191,2]
[362904022,1748518247754,-541.87,0.00022191,2]
[362904024,1748518247764,-1771.6,0.00022191,2]
[362904026,1748518247773,-430.0,0.00022191,2]
[362904028,1748518247783,-747.17179153,0.0002221,6]
[362904030,1748518247793,-747.17179153,0.00022417,7]
[362904032,1748518247802,-430.0,0.00022465,2]
[362904034,1748518247811,-321.24749749,0.00022465,2]
[362904036,1748518247820,-430.0,0.00022465,2]
[362904038,1748518247830,-430.0,0.00022465,2]
[362904040,1748518247839,-430.0,0.00022465,2]
[362904042,1748518247849,-821.8,0.00022465,2]
[362904044,1748518247858,-430.0,0.00022465,2]
[362904046,1748518247872,-430.0,0.00022465,2]
[362904048,1748518247882,-1210.48,0.00022465,2]
[362904050,1748518247891,-457.55,0.00022465,2]
[362904052,1748518247900,-2174.08,0.00022465,2]
[362904054,1748518247911,-430.0,0.00022465,2]
[362904056,1748518247920,-430.0,0.00022465,2]
[362904058,1748518247930,-541.87,0.00022465,2]
[362904060,1748518247940,-1771.6,0.00022465,2]
[362904062,1748518247950,-168.0,0.00022465,2]
[362904064,1748518247959,-747.17179153,0.00022624,7]
[362904066,1748518247969,-227.9,0.00022739,2]
[362904068,1748518247978,-472.44,0.00022739,2]
[362904070,1748518247987,-430.0,0.00022739,2]
[362904072,1748518247997,-430.0,0.00022739,2]
[362904074,1748518248009,-821.8,0.00022739,2]
[362904076,1748518248019,-365.94047566,0.00022739,2]
[362904079,1748518248028,-430.0,0.00022739,2]
[362904081,1748518248037,-1210.48,0.00022739,2]
[362904083,1748518248047,-457.55,0.00022739,2]
[362904084,1748518248057,-2174.08,0.00022739,2]
[362904086,1748518248067,-438.73,0.00022739,2]
[362904088,1748518248076,-430.0,0.00022739,2]
[362904091,1748518248086,-541.87,0.00022739,2]
[362904093,1748518248095,-1771.6,0.00022739,2]
[362904095,1748518248106,-250.0,0.000228,2]
[362904097,1748518248116,-250.0,0.000228,2]
[362904099,1748518248125,-250.0,0.000228,2]
[362904101,1748518248135,-250.0,0.000228,2]
[362904103,1748518248144,-250.0,0.000228,2]
[362904105,1748518248153,-250.0,0.000228,2]
[362904107,1748518248163,-747.17179153,0.00022831,8]
[362904108,1748518248172,-4000.0,0.00022898,4]
[362904110,1748518248181,-430.0,0.00023013,2]
[362904112,1748518248191,-430.0,0.00023013,2]
[362904114,1748518248201,-821.8,0.00023013,2]
[362904116,1748518248210,-430.0,0.00023013,2]
[362904118,1748518248220,-1210.48,0.00023013,2]
[362904120,1748518248229,-457.55,0.00023013,2]
[362904122,1748518248239,-2174.08,0.00023013,2]
[362904124,1748518248248,-553.21820338,0.00023013,2]
[362904126,1748518248258,-541.87,0.00023013,2]
[362904129,1748518248268,-1771.6,0.00023013,2]
[362904130,1748518248278,-747.17179153,0.00023038,8]
[362904132,1748518248287,-151.0,0.00023237,2]
[362904135,1748518248297,-207.4,0.00023237,2]
[362904137,1748518248309,-1907.01256814,0.00023237,2]
[362904139,1748518248318,-747.17179153,0.00023245,8]
[362904140,1748518248327,-430.0,0.00023287,2]
[362904142,1748518248336,-430.0,0.00023287,2]
[362904144,1748518248344,-821.8,0.00023287,2]
[362904146,1748518248353,-430.0,0.00023287,2]
[362904148,1748518248362,-1210.48,0.00023287,2]
[362904150,1748518248371,-457.55,0.00023287,2]
[362904152,1748518248381,-2174.08,0.00023287,2]
[362904154,1748518248391,-541.87,0.00023287,2]
[362904156,1748518248400,-1771.6,0.00023287,2]
[362904158,1748518248410,-500.0,0.00023356,2]
[362904161,1748518248419,-719.11481591,0.0002337,2]
[362904163,1748518248429,-747.17179153,0.00023452,9]
[362904165,1748518248439,-540.52,0.00023561,2]
[362904167,1748518248448,-430.0,0.00023561,2]
[362904169,1748518248457,-821.8,0.00023561,2]
[362904171,1748518248466,-430.0,0.00023561,2]
[362904173,1748518248475,-1210.48,0.00023561,2]
[362904174,1748518248484,-457.55,0.00023561,2]
[362904177,1748518248494,-2174.08,0.00023561,2]
[362904179,1748518248504,-541.87,0.00023561,2]
[362904181,1748518248514,-1771.6,0.00023561,2]
[362904182,1748518248523,-405.0,0.00023585,2]
[362904185,1748518248533,-961.0,0.00023585,2]
[362904186,1748518248543,-480.33,0.000236,2]
[362904188,1748518248553,-1242.72,0.000236,7]
[362904190,1748518248563,-3673.14,0.000236,2]
[362904192,1748518248573,-45620.12,0.000236,2]
[362904194,1748518248582,-256.12305451,0.00023785,2]
[362904196,1748518248591,-430.0,0.00023835,2]
[362904198,1748518248600,-821.8,0.00023835,2]
[362904200,1748518248609,-285.0,0.00023835,2]
[362904202,1748518248618,-1210.48,0.00023835,2]
[362904204,1748518248627,-457.55,0.00023835,2]
[362904206,1748518248637,-2174.08,0.00023835,2]
[362904208,1748518248646,-541.87,0.00023835,2]
[362904210,1748518248654,-1771.6,0.00023835,2]
[362904212,1748518248663,-38886.41,0.000239,7]
[362904214,1748518248673,-250.0,0.000239,2]
[362904216,1748518248684,-250.0,0.000239,2]
[362904218,1748518248693,-203.515,0.00024109,2]
[362904220,1748518248702,-163.36,0.00024109,2]
[362904222,1748518248711,-821.8,0.00024109,2]
[362904224,1748518248720,-1210.48,0.00024109,2]
[362904226,1748518248729,-457.55,0.00024109,2]
[362904228,1748518248738,-2174.08,0.00024109,2]
[362904230,1748518248748,-541.87,0.00024109,2]
[362904232,1748518248758,-1771.6,0.00024109,2]
[362904234,1748518248767,-821.8,0.00024383,2]
[362904236,1748518248776,-1210.48,0.00024383,2]
[362904238,1748518248786,-457.55,0.00024383,2]
[362904240,1748518248795,-2174.08,0.00024383,2]
[362904242,1748518248805,-541.87,0.00024383,2]
[362904244,1748518248814,-1771.6,0.00024383,2]
[362904246,1748518248823,-650.39,0.000244,7]
[362904248,1748518248834,-965.8,0.00024426,15]
[362904250,1748518248844,-400.632326,0.000245,3]
[362904252,1748518248854,-14159.90284882,0.00024552,2]
[362904254,1748518248863,-653.72746393,0.00024603,2]
[362904256,1748518248878,-215.0738,0.00024606,2]
[362904258,1748518248888,-407.03,0.00024657,3]
[362904260,1748518248898,-821.8,0.00024657,2]
[362904262,1748518248907,-1210.48,0.00024657,2]
[362904264,1748518248917,-457.55,0.00024657,2]
[362904267,1748518248927,-2174.08,0.00024657,2]
[362904269,1748518248937,-541.87,0.00024657,2]
[362904270,1748518248948,-1771.6,0.00024657,2]
[362904272,1748518248957,-330.0,0.00024658,3]
[362904274,1748518248967,-208.5619076,0.00024658,2]
[362904275,1748518248977,-10000.0,0.000247,30]
[362904276,1748518248986,-12660.97845086,0.000247,30]
[362904277,1748518248996,-2000.0,0.000248,2]
[362904278,1748518249007,-409.7372,0.000248,60]
[362904279,1748518249017,-693.19,0.000248,6]
[362904280,1748518249026,-719.11481591,0.000248,2]
[362904281,1748518249036,-200.0,0.00024806,120]
[362904282,1748518249046,-320.0,0.0002489,31]
[362904283,1748518249056,-1616.09,0.0002489,10]
[362904284,1748518249066,-600.0,0.000249,7]
[362904285,1748518249075,-600.0,0.000249,31]
[362904286,1748518249084,-151.0,0.000249,7]
[362904287,1748518249094,-151.0,0.000249,7]
[362904289,1748518249103,-151.0,0.000249,7]
[362904291,1748518249112,-152.55,0.000249,31]
[362904293,1748518249120,-152.55,0.000249,31]
[362904295,1748518249129,-152.55,0.000249,31]
[362904297,1748518249139,-152.55,0.000249,31]
[362904299,1748518249148,-152.55,0.000249,31]
[362904301,1748518249158,-152.55,0.000249,31]
[362904303,1748518249167,-152.55,0.000249,31]
[362904305,1748518249176,-610135.127886,0.000249,2]
[362904307,1748518249185,-3673.14,0.000249,2]
[362904309,1748518249195,-45620.12,0.000249,2]
[362904311,1748518249203,-200.0,0.00024903,120]
[362904313,1748518249213,-600.0,0.00024931,30]
[362904315,1748518249221,-821.8,0.00024931,2]
[362904317,1748518249231,-1210.48,0.00024931,2]
[362904319,1748518249240,-457.55,0.00024931,2]
[362904321,1748518249249,-2174.08,0.00024931,2]
[362904323,1748518249260,-541.87,0.00024931,2]
[362904324,1748518249269,-1771.6,0.00024931,2]
[362904326,1748518249279,-96037.30267027,0.00025,2]
[362904328,1748518249288,-195377.19262438,0.00025,30]
[362904377,1748518249743,-5000.0,0.00018983,2]
[362904379,1748518249753,-500.0,0.00019175,2]
[362904381,1748518249762,-500.0,0.00019175,2]
[362904383,1748518249771,-500.0,0.00019175,2]
[362904385,1748518249780,-500.0,0.00019175,2]
[362904387,1748518249790,-500.0,0.00019175,2]
[362904389,1748518249799,-500.0,0.00019175,2]
[362904392,1748518249809,-430.0,0.00019178,2]
[362904394,1748518249817,-430.0,0.00019178,2]
[362904396,1748518249827,-430.0,0.00019178,2]
[362904397,1748518249836,-485.08909823,0.00019178,2]
[362904399,1748518249845,-430.0,0.00019178,2]
[362904401,1748518249854,-500.0,0.00019178,2]
[362904403,1748518249864,-578.9108773,0.00019452,2]
[362904405,1748518249877,-430.0,0.00019452,2]
[362904407,1748518249886,-747.17179153,0.00023659,9]
[362904409,1748518249896,-747.17179153,0.00023866,10]
[362904411,1748518249905,-747.17179153,0.00024072,10]
[362904413,1748518249914,-747.17179153,0.00024279,10]
[362904415,1748518249924,-747.17179153,0.00024486,11]
[362904417,1748518249933,-747.17179153,0.00024693,11]
[362904419,1748518249942,-747.17179153,0.000249,12]
[362904421,1748518249952,-649366.41872728,0.00025,30]
[362904434,1748518250070,-300.0,0.00019174,2]
[362904436,1748518250079,-430.0,0.00019178,2]
[362904438,1748518250089,-430.0,0.00019178,2]
[362904440,1748518250097,-214.13083893,0.00019178,2]
[362904442,1748518250107,-432.9224785,0.00019178,2]
[362904444,1748518250116,-430.0,0.00019452,2]
[362904446,1748518250125,-430.0,0.00019726,2]
[362904448,1748518250135,-430.0,0.0002,2]
[362904450,1748518250145,-430.0,0.00020273,2]
[362904452,1748518250154,-430.0,0.00020547,2]
[362904454,1748518250164,-428.73,0.00020821,2]
[362904456,1748518250174,-420.0,0.00020896,2]
[362904458,1748518250184,-192.0,0.00022773,2]
[362904460,1748518250194,-707.0,0.00022829,2]
[362904462,1748518250204,-2232.0,0.00022829,2]
[362904464,1748518250213,-840175.40093486,0.00025,30]
[362905393,1748518260447,176.0502,0.00013699,2]
[362909460,1748518642676,4080.61917009,0.00016,2]
[362909461,1748518642700,919.38082991,0.00016,2]
[362909462,1748518658477,5000.0,0.00016,2]
[362909463,1748518673091,9988.30748001,0.00024658,120]
[362909464,1748518673900,3647.02437009,0.00016,2]
[362909465,1748518673922,1352.97562991,0.00016,2]
[362909466,1748518686658,10000.0,0.00024658,120]
[362909467,1748518689489,5000.0,0.00016,2]
[362909468,1748518706073,3213.42957009,0.00016,2]
[362909469,1748518706096,1786.57042991,0.00016,2]
[362909470,1748518721400,5000.0,0.00016,2]
[362909471,1748518736595,2779.83477009,0.00016,2]
[362909472,1748518736616,2220.16522991,0.00016,2]
[362909473,1748518751981,5000.0,0.00016,2]
[362909474,1748518767913,2346.23997009,0.00016,2]
[362909475,1748518767934,2653.76002991,0.00016,2]
[362909476,1748518784324,5000.0,0.00016,2]
[362909477,1748518786696,5000.0,0.00022,30]
[362909478,1748518789730,5000.0,0.00022,30]
[362909479,1748518792965,5000.0,0.00022,30]
[362909480,1748518795952,5000.0,0.00022,30]
[362909481,1748518799625,1912.64517009,0.00016,2]
[362909482,1748518799652,3087.35482991,0.00016,2]
[362909483,1748518800282,5000.0,0.00022,30]
[362909484,1748518804182,5000.0,0.00022,30]
[362909485,1748518815654,5000.0,0.00016,2]
[362909486,1748518831034,1479.05037009,0.00016,2]
[362909487,1748518831061,3520.94962991,0.00016,2]
[362909488,1748518847001,5000.0,0.00016,2]
[362909489,1748518862367,1045.45557009,0.00016,2]
[362909490,1748518862390,3954.54442991,0.00016,2]
[362909491,1748518877842,5000.0,0.00016,2]
[362909492,1748518987270,1000.0,0.00024657,120]
[362909493,1748519017299,2180.0,0.00022,30]
[362909494,1748519080446,611.86077009,0.00016,2]
[362909495,1748519080486,4388.13922991,0.00016,2]
[362909496,1748519096119,5000.0,0.00016,2]
[362909497,1748519111419,178.26597009,0.00016,2]
[362909498,1748519111443,4821.73402991,0.00016,2]
[362909499,1748519127308,4744.67117009,0.00016,2]
[362909500,1748519127333,255.32882991,0.00016,2]
[362909501,1748519133904,30483.0,0.00022,30]
[362909502,1748519142652,5000.0,0.00016,2]
[362909503,1748519158712,4311.07637009,0.00016,2]
[362909504,1748519158735,688.92362991,0.00016,2]
[362909505,1748519174166,5000.0,0.00016,2]
[362909506,1748519189552,3877.48157009,0.00016,2]
[362909507,1748519189577,1122.51842991,0.00016,2]
[362909509,1748519204952,5000.0,0.00016,2]
[362909510,1748519221475,3443.88677009,0.00016,2]
[362909511,1748519221675,1556.11322991,0.00016,2]
[362909518,1748519314185,642.71453525,0.00024657,120]
[362909525,1748519402461,600.0,0.00024657,120]
[362909527,1748519424611,5000.0,0.00016,2]
[362909555,1748519432534,-150.49,0.00016008,2]
[362909556,1748519432544,-180.59,0.00016649,2]
[362909557,1748519432554,-210.69,0.00017289,2]
[362909558,1748519432563,-190.355758,0.00017403,2]
[362909559,1748519432573,-347.33904734,0.00017879,2]
[362909560,1748519432583,-300.0,0.00017888,2]
[362909561,1748519432593,-300.0,0.00017888,2]
[362909562,1748519432602,-24900.0,0.00017889,2]
[362909563,1748519432612,-240.79,0.00017929,2]
[362909564,1748519432622,-270.89,0.0001857,2]
[362909565,1748519432631,-216.5977138,0.000189,2]
[362909566,1748519432640,-457.30381214,0.00019078,2]
[362909567,1748519432650,-216.59771354,0.00019107,2]
[362909568,1748519432660,-500.0,0.00019166,2]
[362909569,1748519432669,-500.0,0.00019166,2]
[362909570,1748519432678,-500.0,0.00019166,2]
[362909571,1748519432688,-500.0,0.00019166,2]
[362909572,1748519432697,-500.0,0.00019166,2]
[362909573,1748519432706,-154.11353913,0.00019166,2]
[362909574,1748519432716,-500.0,0.00019166,2]
[362909575,1748519432725,-500.0,0.00019166,2]
[362909576,1748519432735,-500.0,0.00019166,2]
[362909577,1748519432746,-500.0,0.00019166,2]
[362909578,1748519432756,-500.0,0.00019166,2]
[362909579,1748519432765,-500.0,0.00019166,2]
[362909580,1748519432775,-500.0,0.00019166,2]
[362909581,1748519432784,-500.0,0.00019166,2]
[362909582,1748519432794,-500.0,0.00019166,2]
[362909583,1748519432804,-495.26257962,0.00019166,2]
[362909584,1748519432949,-4.73742038,0.00019166,2]
[362909585,1748519432960,-483.38955492,0.00019166,2]
[362909586,1748519432971,-16.61044508,0.00019166,2]
[362909587,1748519432981,-297.93648175,0.00019166,2]
[362909588,1748519432995,-205.92191847,0.00019166,2]
[362909589,1748519433004,-500.0,0.00019166,2]
[362909590,1748519433013,-262.91755419,0.00019166,2]
[362909591,1748519433023,-500.0,0.00019166,2]
[362909592,1748519433032,-500.0,0.00019166,2]
[362909593,1748519433042,-500.0,0.00019166,2]
[362909594,1748519433051,-500.0,0.00019166,2]
[362909595,1748519433060,-500.0,0.00019166,2]
[362909596,1748519433070,-500.0,0.00019166,2]
[362909597,1748519433080,-500.0,0.00019166,2]
[362909598,1748519433089,-500.0,0.00019166,2]
[362909599,1748519433246,-500.0,0.00019166,2]
[362909600,1748519433260,-500.0,0.00019166,2]
[362909601,1748519433271,-500.0,0.00019166,2]
[362909602,1748519433281,-500.0,0.00019166,2]
[362909603,1748519433291,-253.15074894,0.00019166,2]
[362909604,1748519433304,-246.84925106,0.00019166,2]
[362909605,1748519433314,-2934.12909583,0.00019167,2]
[362909606,1748519433336,-11274.22295419,0.00019167,2]
[362909607,1748519433349,-4199.499995,0.00019167,2]
[362909608,1748519433361,-359.3437208,0.00019167,2]
[362909611,1748519438325,-1711.17200211,0.00019167,2]
[362909612,1748519438337,-6309.2075714,0.00019167,2]
[362909614,1748519438349,-528.78757581,0.00019167,2]
[362909616,1748519438360,-501.87708855,0.00019167,2]
[362909619,1748519438377,-5200.41569631,0.00019167,2]
[362909621,1748519438387,-500.0,0.00019173,2]
[362909623,1748519438396,-500.0,0.00019173,2]
[362909625,1748519438405,-500.84143021,0.00019173,2]
[362909627,1748519438415,-500.43928904,0.00019173,2]
[362909629,1748519438424,-500.0,0.00019173,2]
[362909631,1748519438434,-500.0,0.00019173,2]
[362909633,1748519438443,-201.75957293,0.00019173,2]
[362909635,1748519438453,-153.65887276,0.00019173,2]
[362909637,1748519438462,-444.88367827,0.00019173,2]
[362909639,1748519438471,-500.93615885,0.00019173,2]
[362909640,1748519438480,-502.7598338,0.00019173,2]
[362909642,1748519438491,-500.41309258,0.00019173,2]
[362909644,1748519438502,-179.00145892,0.00019173,2]
[362909646,1748519438512,-500.95406167,0.00019173,2]
[362909648,1748519438521,-500.0,0.00019175,2]
[362909650,1748519438531,-160.0,0.00019177,2]
[362909652,1748519438540,-155.372,0.00019177,2]
[362909654,1748519438549,-622.79434393,0.00019177,2]
[362909656,1748519438559,-349.55466435,0.00019177,2]
[362909658,1748519438568,-521.14946565,0.00019177,2]
[362909660,1748519438577,-521.14946565,0.00019177,2]
[362909662,1748519438586,-521.14946565,0.00019177,2]
[362909665,1748519438596,-521.14946565,0.00019177,2]
[362909666,1748519438606,-521.14946565,0.00019177,2]
[362909668,1748519438615,-521.14946565,0.00019177,2]
[362909670,1748519438624,-521.14946565,0.00019177,2]
[362909672,1748519438633,-521.14946565,0.00019177,2]
[362909674,1748519438642,-500.0,0.00019177,2]
[362909676,1748519438652,-521.14946565,0.00019177,2]
[362909678,1748519438661,-521.14946565,0.00019177,2]
[362909680,1748519438671,-521.14946565,0.00019177,2]
[362909682,1748519438680,-521.14946565,0.00019177,2]
[362909684,1748519438690,-521.14946565,0.00019177,2]
[362909686,1748519438699,-521.14946565,0.00019177,2]
[362909688,1748519438708,-521.14946565,0.00019177,2]
[362909690,1748519438717,-204.02104177,0.00019177,2]
[362909693,1748519438729,-317.12842388,0.00019177,2]
[362909695,1748519438738,-521.14946565,0.00019177,2]
[362909697,1748519438748,-527.66383397,0.00019177,2]
[362909698,1748519438759,-527.66383397,0.00019177,2]
[362909700,1748519438767,-527.66383397,0.00019177,2]
[362909702,1748519438777,-527.66383397,0.00019177,2]
[362909704,1748519438786,-527.66383397,0.00019177,2]
[362909706,1748519438797,-527.66383397,0.00019177,2]
[362909708,1748519438806,-527.66383397,0.00019177,2]
[362909710,1748519438816,-527.66383397,0.00019177,2]
[362909713,1748519438826,-450.0,0.00019177,2]
[362909714,1748519438835,-500.0,0.00019177,2]
[362909716,1748519438844,-478.39541529,0.00019177,2]
[362909718,1748519438854,-269.74994427,0.00019177,2]
[362909720,1748519438863,-450.0,0.00019177,2]
[362909722,1748519438872,-172.64307448,0.00019178,2]
[362909724,1748519438882,-430.0,0.00019178,2]
[362909726,1748519438891,-430.0,0.00019178,2]
[362909728,1748519438900,-430.0,0.00019178,2]
[362909730,1748519438909,-480.98377226,0.00019178,2]
[362909732,1748519438918,-430.0,0.00019178,2]
[362909734,1748519438927,-442.06294272,0.00019178,2]
[362909736,1748519438936,-430.0,0.00019178,2]
[362909738,1748519438945,-430.0,0.00019178,2]
[362909740,1748519438954,-230.98783582,0.00019178,2]
[362909742,1748519438964,-430.9910693,0.00019178,2]
[362909744,1748519438973,-430.0,0.00019178,2]
[362909746,1748519438982,-510.51537484,0.00019178,2]
[362909748,1748519438991,-450.0,0.00019178,2]
[362909750,1748519439002,-430.0,0.00019178,2]
[362909752,1748519439011,-430.0,0.00019178,2]
[362909754,1748519439020,-430.0,0.00019178,2]
[362909756,1748519439030,-430.0,0.00019178,2]
[362909758,1748519439039,-430.0,0.00019178,2]
[362909760,1748519439048,-430.0,0.00019178,2]
[362909762,1748519439059,-430.0,0.00019178,2]
[362909764,1748519439068,-430.0,0.00019178,2]
[362909766,1748519439079,-430.0,0.00019178,2]
[362909768,1748519439089,-430.0,0.00019178,2]
[362909770,1748519439098,-571.48897766,0.00019178,2]
[362909772,1748519439108,-500.0,0.00019178,2]
[362909773,1748519439117,-430.0,0.00019178,2]
[362909775,1748519439127,-430.0,0.00019178,2]
[362909777,1748519439136,-430.0,0.00019178,2]
[362909779,1748519439145,-430.0,0.00019178,2]
[362909781,1748519439154,-430.0,0.00019178,2]
[362909783,1748519439163,-430.0,0.00019178,2]
[362909785,1748519439173,-433.28171749,0.00019178,2]
[362909787,1748519439182,-436.82395891,0.00019178,2]
[362909789,1748519439192,-430.0,0.00019178,2]
[362909791,1748519439201,-430.0,0.00019178,2]
[362909793,1748519439210,-430.0,0.00019178,2]
[362909795,1748519439219,-430.0,0.00019178,2]
[362909797,1748519439229,-430.0,0.00019178,2]
[362909799,1748519439238,-430.0,0.00019178,2]
[362909801,1748519439248,-433.77926176,0.00019178,2]
[362909803,1748519439264,-432.01289897,0.00019178,2]
[362909805,1748519439280,-430.0,0.00019178,2]
[362909807,1748519439289,-430.0,0.00019178,2]
[362909809,1748519439299,-430.0,0.00019178,2]
[362909811,1748519439308,-430.0,0.00019178,2]
[362909813,1748519439318,-430.0,0.00019178,2]
[362909815,1748519439327,-430.0,0.00019178,2]
[362909817,1748519439336,-430.0,0.00019178,2]
[362909819,1748519439345,-456.79819797,0.00019178,2]
[362909821,1748519439355,-430.0,0.00019178,2]
[362909823,1748519439364,-430.0,0.00019178,2]
[362909825,1748519439375,-163.47970621,0.00019178,2]
[362909827,1748519439384,-430.0,0.00019178,2]
[362909829,1748519439393,-406.34316315,0.00019178,2]
[362909831,1748519439402,-434.20529704,0.00019178,2]
[362909833,1748519439412,-430.0,0.00019178,2]
[362909834,1748519439424,-443.36531859,0.00019178,2]
[362909836,1748519439444,-405.24497119,0.00019178,2]
[362909838,1748519439454,-430.0,0.00019178,2]
[362909840,1748519439464,-430.0,0.00019178,2]
[362909842,1748519439474,-430.0,0.00019178,2]
[362909844,1748519439484,-430.0,0.00019178,2]
[362909846,1748519439493,-430.0,0.00019178,2]
[362909848,1748519439503,-295.24297421,0.00019178,2]
[362909850,1748519439514,-430.0,0.00019178,2]
[362909852,1748519439523,-418.28719123,0.00019178,2]
[362909854,1748519439533,-430.0,0.00019178,2]
[362909856,1748519439542,-430.0,0.00019178,2]
[362909858,1748519439552,-430.0,0.00019178,2]
[362909860,1748519439562,-433.18257372,0.00019178,2]
[362909862,1748519439571,-435.487845,0.00019178,2]
[362909864,1748519439581,-430.0,0.00019178,2]
[362909866,1748519439590,-430.0,0.00019178,2]
[362909868,1748519439600,-433.76464637,0.00019178,2]
[362909870,1748519439612,-507.27213145,0.00019178,2]
[362909872,1748519439621,-430.0,0.00019178,2]
[362909874,1748519439631,-430.0,0.00019178,2]
[362909876,1748519439641,-436.61590364,0.00019178,2]
[362909878,1748519439650,-435.61415668,0.00019178,2]
[362909880,1748519439660,-447.28989834,0.00019178,2]
[362909882,1748519439670,-430.0,0.00019178,2]
[362909884,1748519439680,-430.0,0.00019178,2]
[362909886,1748519439689,-435.43897391,0.00019178,2]
[362909888,1748519439698,-500.0,0.00019178,2]
[362909890,1748519439709,-500.0,0.00019178,2]
[362909892,1748519439719,-506.56287931,0.00019178,2]
[362909894,1748519439728,-430.0,0.00019178,2]
[362909896,1748519439738,-442.72482161,0.00019178,2]
[362909898,1748519439747,-430.0,0.00019178,2]
[362909900,1748519439758,-430.0,0.00019178,2]
[362909902,1748519439767,-441.50798249,0.00019178,2]
[362909904,1748519439777,-402.49150406,0.00019178,2]
[362909906,1748519439787,-430.0,0.00019178,2]
[362909908,1748519439797,-477.39043164,0.00019178,2]
[362909910,1748519439806,-430.0,0.00019178,2]
[362909913,1748519439816,-430.91064601,0.00019178,2]
[362909916,1748519439825,-435.82567579,0.00019178,2]
[362909918,1748519439835,-435.6496909,0.00019178,2]
[362909920,1748519439844,-334.51930767,0.00019178,2]
[362909922,1748519439854,-430.0,0.00019178,2]
[362909924,1748519439864,-430.0,0.00019178,2]
[362909926,1748519439874,-375.87694653,0.00019178,2]
[362909928,1748519439883,-430.0,0.00019178,2]
[362909930,1748519439893,-430.0,0.00019178,2]
[362909932,1748519439903,-430.0,0.00019178,2]
[362909934,1748519439913,-430.0,0.00019178,2]
[362909936,1748519439923,-188.0,0.00019178,2]
[362909938,1748519439933,-430.0,0.00019178,2]
[362909940,1748519439942,-430.0,0.00019178,2]
[362909942,1748519439952,-497.91472707,0.00019178,2]
[362909944,1748519439961,-431.21323482,0.00019178,2]